[Event "World Senior chT-65 2019"]
[Site "Rhodes"]
[Date "2019.04.23"]
[Round "8.19"]
[White "Shushpanov, Vladimir"]
[Black "Grahn, Lars"]
[Result "1/2-1/2"]
[ECO "A80"]
[WhiteElo "2180"]
[BlackElo "1985"]
[Annotator "RC"]
[PlyCount "108"]
[EventDate "2019.04.16"]
[EventType "team-tourn"]
[EventCountry "GRE"]
[SourceTitle "playchess.com"]
[Source "ChessBase"]
[SourceQuality "1"]
[WhiteTeam "Russia"]
[BlackTeam "Sweden"]
[WhiteTeamCountry "RUS"]
[BlackTeamCountry "SWE"]
[TimeControl "40/5400+30:1800+30"]

1. d4 {[%emt 0:00:00]} f5 {[%emt 0:00:00]} 2. Nc3 {[%emt 0:00:04]} Nf6 {[%emt 0:00:00]} 3. Bg5 {[%emt 0:00:09]} d5 {[%emt 0:00:00]} 4. e3 {[%emt 0:00:53]} e6 {[%emt 0:02:10]} 5. Bd3 {[%emt 0:00:47]} Be7 {[%emt 0:00:24]} 6. h3 {[%emt 0:03:24]} Ne4 {[%emt 0:08:11]} 7. Bxe7 {[%emt 0:00:37]} Qxe7 {[%emt 0:00:14]} 8. Bxe4 {[%emt 0:00:37]} fxe4 {[%emt 0:01:11]} 9. Qe2 {[%emt 0:00:44]} Bd7 {[%emt 0:02:50]} 10. O-O-O {[%emt 0:00:20]} Na6 {[%emt 0:04:12]} 11. f3 {[%emt 0:00:50]} exf3 {[%emt 0:00:35]} 12. Nxf3 {[%emt 0:01:11]} O-O-O {[%emt 0:00:49]} 13. e4 {[%emt 0:02:08]} Bc6 {[%emt 0:12:20]} 14. Ne5 {[%emt 0:04:36]} Nb8 {[%emt 0:00:46]} 15. Rhf1 {[%emt 0:07:57]} Rhf8 {[%emt 0:00:46]} 16. Rxf8 {[%emt 0:15:55]} Qxf8 {[%emt 0:06:13]} 17. Qg4 {[%emt 0:04:42]} Qf6 {[%emt 0:05:28]} 18. Nxc6 {[%emt 0:10:18]} bxc6 {[%emt 0:00:12]} 19. exd5 {[%emt 0:01:04]} cxd5 {[%emt 0:00:57]} 20. Re1 {[%emt 0:04:15]} Rd6 {[%emt 0:00:56]} 21. a4 {[%emt 0:01:03]} a6 {[%emt 0:02:32]} 22. Ne2 {[%emt 0:06:09]} Nc6 {[%emt 0:02:08]} 23. c3 {[%emt 0:00:22]} Qf2 {[%emt 0:09:47]} 24. Qg3 {[%emt 0:01:24]} Qf5 {[%emt 0:05:41]} 25. Qf4 {[%emt 0:05:09]} Qg6 {[%emt 0:02:24]} 26. Qg3 {[%emt 0:04:24]} Qf5 {[%emt 0:01:12]} 27. b4 {[%emt 0:03:01]} g5 {[%emt 0:04:44]} 28. Kd2 {[%emt 0:02:13]} e5 {[%emt 0:06:56]} 29. Qg4 {[%emt 0:01:14]} Qxg4 {[%emt 0:02:15]} 30. hxg4 {[%emt 0:00:02]} exd4 {[%emt 0:00:42]} 31. Nxd4 {[%emt 0:00:11]} Nxd4 {[%emt 0:00:24]} 32. cxd4 {[%emt 0:00:02]} h6 {[%emt 0:03:30]} 33. Re8+ {[%emt 0:01:00]} Kb7 {[%emt 0:00:45]} 34. Re5 {[%emt 0:02:05]} Kb6 {[%emt 0:03:30]} 35. Kd3 {[%emt 0:01:04]} Kb7 {[%emt 0:00:28]} 36. Kc3 {[%emt 0:02:00]} Kb6 {[%emt 0:01:30]} 37. Re8 {[%emt 0:01:51]} Rc6+ {[%emt 0:03:32]} 38. Kd3 {[%emt 0:00:53]} Rc4 {[%emt 0:00:58]} 39. a5+ {[%emt 0:02:25]} Kb7 {[%emt 0:01:19]} 40. Re5 {[%emt 0:00:00]} Kc6 {[%emt 0:00:00]} 41. Re6+ {[%emt 0:01:49]} Kb7 {[%emt 0:07:18]} 42. Rxh6 {[%emt 0:00:53]} Rxb4 {[%emt 0:00:15]} 43. Rg6 {[%emt 0:00:42]} Rb3+ {[%emt 0:08:24]} 44. Kc2 {[%emt 0:01:03]} Rg3 {[%emt 0:01:11]} 45. Rxg5 {[%emt 0:00:13]} Kc6 {[%emt 0:02:41]} 46. Kd2 {[%emt 0:00:58]} Kb5 {[%emt 0:10:04]} 47. Rxd5+ {[%emt 0:01:20]} Kc4 {[%emt 0:00:04]} 48. Rc5+ {[%emt 0:01:24]} Kxd4 {[%emt 0:00:07]} 49. Rxc7 {[%emt 0:00:10]} Rxg2+ {[%emt 0:00:21]} 50. Kc1 {[%emt 0:00:15]} Rxg4 {[%emt 0:03:29]} 51. Rc6 {[%emt 0:00:22]} Kd5 {[%emt 0:01:21]} 52. Rxa6 {[%emt 0:00:32]} Kc5 {[%emt 0:00:18]} 53. Rh6 {[%emt 0:02:06]} Kb5 {[%emt 0:00:47]} 54. a6 {[%emt 0:00:29]} Ra4 {[%emt 0:00:14]} 1/2-1/2

[Event "World Senior chT-65 2019"]
[Site "Rhodes"]
[Date "2019.04.23"]
[Round "8.20"]
[White "Svensson, Soren"]
[Black "Blechzin, Igor"]
[Result "1-0"]
[ECO "E94"]
[WhiteElo "1964"]
[BlackElo "2210"]
[Annotator "ChessBase"]
[PlyCount "100"]
[EventDate "2019.04.16"]
[EventType "team-tourn"]
[EventCountry "GRE"]
[SourceTitle "playchess.com"]
[Source "ChessBase"]
[SourceQuality "1"]
[WhiteTeam "Sweden"]
[BlackTeam "Russia"]
[WhiteTeamCountry "SWE"]
[BlackTeamCountry "RUS"]
[TimeControl "40/5400+30:1800+30"]

1. d4 {[%emt 0:00:00]} Nf6 {[%emt 0:00:00]} 2. c4 {[%emt 0:00:01]} g6 {[%emt 0:00:00]} 3. Nc3 {[%emt 0:00:19]} Bg7 {[%emt 0:00:00]} 4. e4 {[%emt 0:00:14]} d6 {[%emt 0:00:02]} 5. Be2 {[%emt 0:00:17]} O-O {[%emt 0:00:17]} 6. Bg5 {[%emt 0:00:31]} Nbd7 {[%emt 0:00:37]} 7. Qd2 {[%emt 0:00:32]} c6 {[%emt 0:02:56]} 8. Nf3 {[%emt 0:04:30]} e5 {[%emt 0:00:48]} 9. O-O {[%emt 0:01:41]} Re8 {[%emt 0:05:12]} 10. Rfd1 {[%emt 0:05:30]} Qc7 {[%emt 0:06:30]} 11. d5 {[%emt 0:05:49]} cxd5 {[%emt 0:01:54]} 12. cxd5 {[%emt 0:05:14]} Nc5 {[%emt 0:01:51]} 13. Rac1 {[%emt 0:04:12]} Qb8 {[%emt 0:14:01]} 14. Qc2 {[%emt 0:04:42]} a5 {[%emt 0:01:25]} 15. Ne1 {[%emt 0:01:52]} Bd7 {[%emt 0:01:13]} 16. f3 {[%emt 0:11:01]} b5 {[%emt 0:03:34]} 17. Nd3 {[%emt 0:05:34]} Qb6 {[%emt 0:08:45]} 18. Kh1 {[%emt 0:05:00]} b4 {[%emt 0:05:46]} 19. Nxc5 {[%emt 0:03:11]} Qxc5 {[%emt 0:00:20]} 20. Nb1 {[%emt 0:00:49]} Qxc2 {[%emt 0:04:53]} 21. Rxc2 {[%emt 0:00:07]} Rec8 {[%emt 0:00:15]} 22. Rdc1 {[%emt 0:00:33]} Rxc2 {[%emt 0:03:36]} 23. Rxc2 {[%emt 0:00:08]} a4 {[%emt 0:00:12]} 24. Rc7 {[%emt 0:03:31]} Be8 {[%emt 0:02:33]} 25. Nd2 {[%emt 0:02:12]} Nd7 {[%emt 0:04:37]} 26. Be3 {[%emt 0:05:56]} Bf8 {[%emt 0:06:42]} 27. Bb5 {[%emt 0:08:25]} Nf6 {[%emt 0:02:09]} 28. Bc6 {[%emt 0:03:39]} Bxc6 {[%emt 0:01:53]} 29. Rxc6 {[%emt 0:00:31]} Be7 {[%emt 0:03:51]} 30. Nc4 {[%emt 0:00:28]} Rd8 {[%emt 0:02:43]} 31. Bd2 {[%emt 0:05:01]} b3 {[%emt 0:02:42]} 32. a3 {[%emt 0:00:27]} Nd7 {[%emt 0:03:05]} 33. Ba5 {[%emt 0:05:30]} Ra8 {[%emt 0:03:01]} 34. Bb4 {[%emt 0:00:21]} Nc5 {[%emt 0:02:36]} 35. Bxc5 {[%emt 0:00:46]} dxc5 {[%emt 0:00:04]} 36. d6 {[%emt 0:01:33]} Rd8 {[%emt 0:00:39]} 37. Kg1 {[%emt 0:02:00]} Bf8 {[%emt 0:00:11]} 38. Kf2 {[%emt 0:00:10]} Kg7 {[%emt 0:01:19]} 39. Ke2 {[%emt 0:04:00]} Kg8 {[%emt 0:00:28]} 40. Rxc5 {[%emt 0:00:00]} Bxd6 {[%emt 0:00:00]} 41. Rd5 {[%emt 0:07:24]} Bc7 {[%emt 0:01:02]} 42. Rxd8+ {[%emt 0:00:47]} Bxd8 {[%emt 0:00:01]} 43. Nxe5 {[%emt 0:00:15]} Bc7 {[%emt 0:02:52]} 44. Nc4 {[%emt 0:02:22]} f5 {[%emt 0:03:24]} 45. exf5 {[%emt 0:01:16]} gxf5 {[%emt 0:00:09]} 46. Kd3 {[%emt 0:00:18]} Kf7 {[%emt 0:00:07]} 47. Kc3 {[%emt 0:00:24]} Ke6 {[%emt 0:00:05]} 48. Kb4 {[%emt 0:11:57]} Kd5 {[%emt 0:00:06]} 49. Nd2 {[%emt 0:00:29]} Bf4 {[%emt 0:01:26]} 50. Nc4 {[%emt 0:00:18]} Kd4 {[%emt 0:03:39]} 1-0

[Event "World Senior chT-65 2019"]
[Site "Rhodes"]
[Date "2019.04.23"]
[Round "8.21"]
[White "Boehnisch, Manfred"]
[Black "Renman, Nils-Gustaf"]
[Result "1/2-1/2"]
[ECO "C01"]
[WhiteElo "2287"]
[BlackElo "2358"]
[Annotator "RC"]
[PlyCount "106"]
[EventDate "2019.04.16"]
[EventType "team-tourn"]
[EventCountry "GRE"]
[SourceTitle "playchess.com"]
[Source "ChessBase"]
[SourceQuality "1"]
[WhiteTeam "Germany"]
[BlackTeam "Sweden"]
[WhiteTeamCountry "GER"]
[BlackTeamCountry "SWE"]
[TimeControl "40/5400+30:1800+30"]

1. e4 {[%emt 0:00:21]} e6 {[%emt 0:00:00]} 2. Nf3 {[%emt 0:01:01]} d5 {[%emt 0:00:00]} 3. exd5 {[%emt 0:00:09]} exd5 {[%emt 0:00:00]} 4. d4 {[%emt 0:00:07]} Nf6 {[%emt 0:00:16]} 5. Bd3 {[%emt 0:00:21]} Bd6 {[%emt 0:00:25]} 6. Qe2+ {[%emt 0:00:25]} Qe7 {[%emt 0:04:58]} 7. Qxe7+ {[%emt 0:00:15]} Kxe7 {[%emt 0:00:19]} 8. O-O {[%emt 0:00:34]} Re8 {[%emt 0:03:03]} 9. Bg5 {[%emt 0:03:07]} h6 {[%emt 0:03:51]} 10. Re1+ {[%emt 0:02:12]} Be6 {[%emt 0:00:20]} 11. Bh4 {[%emt 0:01:09]} Nbd7 {[%emt 0:03:32]} 12. Nc3 {[%emt 0:35:00]} c6 {[%emt 0:11:16]} 13. a3 {[%emt 0:00:29]} Kf8 {[%emt 0:00:25]} 14. Ne5 {[%emt 0:03:23]} Nh5 {[%emt 0:04:32]} 15. Bg3 {[%emt 0:07:07]} Nxg3 {[%emt 0:00:23]} 16. hxg3 {[%emt 0:00:07]} Nxe5 {[%emt 0:07:11]} 17. dxe5 {[%emt 0:00:10]} Bc5 {[%emt 0:01:55]} 18. Na4 {[%emt 0:03:57]} Be7 {[%emt 0:00:15]} 19. Nc3 {[%emt 0:00:31]} a5 {[%emt 0:03:31]} 20. f4 {[%emt 0:01:07]} Bd7 {[%emt 0:04:43]} 21. Kf1 {[%emt 0:02:49]} Bc5 {[%emt 0:00:22]} 22. Na4 {[%emt 0:06:28]} Ba7 {[%emt 0:06:27]} 23. b4 {[%emt 0:00:10]} axb4 {[%emt 0:12:25]} 24. axb4 {[%emt 0:00:09]} b5 {[%emt 0:03:40]} 25. Nc5 {[%emt 0:04:23]} Bxc5 {[%emt 0:00:12]} 26. bxc5 {[%emt 0:00:07]} g6 {[%emt 0:07:09]} 27. Kf2 {[%emt 0:02:57]} Ra4 {[%emt 0:01:27]} 28. Rxa4 {[%emt 0:00:16]} bxa4 {[%emt 0:00:02]} 29. Ra1 {[%emt 0:00:23]} Ra8 {[%emt 0:01:17]} 30. Ra3 {[%emt 0:01:11]} d4 {[%emt 0:03:58]} 31. Ke2 {[%emt 0:05:00]} Ra5 {[%emt 0:01:40]} 32. Be4 {[%emt 0:01:52]} Bf5 {[%emt 0:02:34]} 33. Bxf5 {[%emt 0:02:27]} gxf5 {[%emt 0:00:02]} 34. Kd3 {[%emt 0:00:16]} Rxc5 {[%emt 0:00:16]} 35. Kxd4 {[%emt 0:02:50]} Rxc2 {[%emt 0:00:15]} 36. Rxa4 {[%emt 0:00:30]} Rxg2 {[%emt 0:00:30]} 37. Ra3 {[%emt 0:01:30]} Ke7 {[%emt 0:01:33]} 38. Ra7+ {[%emt 0:05:04]} Ke6 {[%emt 0:00:10]} 39. Rc7 {[%emt 0:00:53]} Rc2 {[%emt 0:01:32]} 40. Rc8 {[%emt 0:00:00]} f6 {[%emt 0:00:00]} 41. Re8+ {[%emt 0:02:57]} Kf7 {[%emt 0:02:28]} 42. Rc8 {[%emt 0:02:01]} fxe5+ {[%emt 0:01:56]} 43. Kxe5 {[%emt 0:04:53]} Rc5+ {[%emt 0:00:34]} 44. Kd4 {[%emt 0:00:32]} Rd5+ {[%emt 0:00:31]} 45. Kc4 {[%emt 0:00:14]} Rd6 {[%emt 0:00:09]} 46. Kc5 {[%emt 0:00:56]} Rd3 {[%emt 0:04:27]} 47. Rc7+ {[%emt 0:03:43]} Kg6 {[%emt 0:01:58]} 48. Rxc6+ {[%emt 0:00:17]} Kh5 {[%emt 0:00:08]} 49. Rf6 {[%emt 0:00:18]} Rxg3 {[%emt 0:00:05]} 50. Rxf5+ {[%emt 0:00:23]} Kg4 {[%emt 0:00:49]} 51. Rf6 {[%emt 0:00:38]} h5 {[%emt 0:00:57]} 52. Kd4 {[%emt 0:01:13]} Ra3 {[%emt 0:00:43]} 53. Ke4 {[%emt 0:00:34]} Ra4+ {[%emt 0:02:04] Kd4 [%emt 00:00:15]} 1/2-1/2

[Event "World Senior chT-65 2019"]
[Site "Rhodes"]
[Date "2019.04.23"]
[Round "8.22"]
[White "Uddenfeldt, Dan"]
[Black "Beltz, Robert"]
[Result "1/2-1/2"]
[ECO "D02"]
[WhiteElo "2339"]
[BlackElo "2158"]
[Annotator "ChessBase"]
[PlyCount "66"]
[EventDate "2019.04.16"]
[EventType "team-tourn"]
[EventCountry "GRE"]
[SourceTitle "playchess.com"]
[Source "ChessBase"]
[SourceQuality "1"]
[WhiteTeam "Sweden"]
[BlackTeam "Germany"]
[WhiteTeamCountry "SWE"]
[BlackTeamCountry "GER"]
[TimeControl "40/5400+30:1800+30"]

1. d4 {[%emt 0:00:00]} d5 {[%emt 0:00:00]} 2. Nf3 {[%emt 0:00:20]} c6 {[%emt 0:00:25]} 3. Bf4 {[%emt 0:00:33]} Bf5 {[%emt 0:01:46]} 4. e3 {[%emt 0:00:54]} e6 {[%emt 0:00:17]} 5. Bd3 {[%emt 0:03:18]} Bd6 {[%emt 0:00:26]} 6. Bg3 {[%emt 0:02:24]} Nf6 {[%emt 0:02:13]} 7. O-O {[%emt 0:02:20]} Ne4 {[%emt 0:01:41]} 8. c4 {[%emt 0:02:14]} dxc4 {[%emt 0:03:45]} 9. Bxc4 {[%emt 0:00:51]} Nd7 {[%emt 0:00:17]} 10. Nc3 {[%emt 0:01:30]} Ndf6 {[%emt 0:05:44]} 11. Rc1 {[%emt 0:07:28]} h5 {[%emt 0:05:46]} 12. Bxd6 {[%emt 0:01:12]} Qxd6 {[%emt 0:04:02]} 13. Nxe4 {[%emt 0:04:44]} Bxe4 {[%emt 0:02:04]} 14. Nd2 {[%emt 0:04:39]} Ng4 {[%emt 0:04:33]} 15. f4 {[%emt 0:03:49]} Bxg2 {[%emt 0:01:08]} 16. Re1 {[%emt 0:01:18]} Bd5 {[%emt 0:03:26]} 17. Nf3 {[%emt 0:06:33]} O-O-O {[%emt 0:08:59]} 18. Bf1 {[%emt 0:07:47]} Bxf3 {[%emt 0:07:56]} 19. Qxf3 {[%emt 0:00:32]} g5 {[%emt 0:00:05]} 20. h3 {[%emt 0:02:05]} gxf4 {[%emt 0:14:17]} 21. hxg4 {[%emt 0:01:16]} Rdg8 {[%emt 0:00:01]} 22. g5 {[%emt 0:02:43]} Rxg5+ {[%emt 0:00:24]} 23. Bg2 {[%emt 0:00:24]} Rhg8 {[%emt 0:01:55]} 24. Re2 {[%emt 0:05:44]} fxe3 {[%emt 0:02:11]} 25. Qxe3 {[%emt 0:02:20]} Rg4 {[%emt 0:03:52]} 26. Rd2 {[%emt 0:02:37]} R8g5 {[%emt 0:03:47]} 27. Rc5 {[%emt 0:02:46]} Rg3 {[%emt 0:01:56]} 28. Qxg5 {[%emt 0:00:47]} Rxg5 {[%emt 0:01:08]} 29. Rxg5 {[%emt 0:00:03]} Qf4 {[%emt 0:00:41]} 30. Rg8+ {[%emt 0:00:51]} Kc7 {[%emt 0:00:03]} 31. Rd3 {[%emt 0:01:48]} Qc1+ {[%emt 0:01:18]} 32. Kh2 {[%emt 0:00:15]} Qf4+ {[%emt 0:00:50]} 33. Kg1 {[%emt 0:00:10]} Qf5 1/2-1/2

[Event "World Senior chT-65 2019"]
[Site "Rhodes"]
[Date "2019.04.23"]
[Round "8.23"]
[White "Baumbach, Friedrich"]
[Black "Hammar, Bengt"]
[Result "0-1"]
[ECO "A42"]
[WhiteElo "2089"]
[BlackElo "2206"]
[Annotator "NA RC"]
[PlyCount "128"]
[EventDate "2019.04.16"]
[EventType "team-tourn"]
[EventCountry "GRE"]
[SourceTitle "playchess.com"]
[Source "ChessBase"]
[SourceQuality "1"]
[WhiteTeam "Germany"]
[BlackTeam "Sweden"]
[WhiteTeamCountry "GER"]
[BlackTeamCountry "SWE"]
[TimeControl "40/5400+30:1800+30"]

1. d4 {[%emt 0:00:00]} g6 {[%emt 0:00:33]} 2. c4 {[%emt 0:00:00]} Bg7 {[%emt 0:00:24]} 3. Nc3 {[%emt 0:00:08]} d6 {[%emt 0:00:29]} 4. e4 {[%emt 0:00:11]} Nd7 {[%emt 0:00:56]} 5. Nf3 {[%emt 0:00:12]} e5 {[%emt 0:00:22]} 6. Be2 {[%emt 0:00:16]} Nh6 {[%emt 0:02:22]} 7. O-O {[%emt 0:05:22]} O-O {[%emt 0:00:33]} 8. h3 {[%emt 0:05:49] A42: Modern Defence: Averbakh Variation} (8. Rb1 c6 9. d5 c5 10. a3 f6 11. b4 b6 12. bxc5 bxc5 13. Qa4 Nb6 14. Qc2 Nf7 15. a4 Nd7 16. Bd2 {1-0 (62) Nenezic,M (2515)-Kadric,D (2554) Skopje 2018}) 8... c6 {[%emt 0:01:11]} 9. Be3 {[%emt 0:00:25]} f6 {[%emt 0:00:18]} 10. b4 $146 {[%emt 0:04:59]} ({Predecessor:} 10. Qd2 Nf7 11. Nh2 f5 12. f4 exf4 13. Bxf4 Nf6 14. exf5 Bxf5 15. Bd3 Bxd3 16. Qxd3 Qd7 17. Nf3 Rae8 18. Rae1 Rxe1 19. Rxe1 {½-½ (33) Pingin,A (2003)-Lopukhin,A (2282) Taganrog 2019}) 10... Nf7 {[%emt 0:01:39]} 11. Qc2 {[%emt 0:08:26]} Qe7 {[%emt 0:08:58]} 12. Rfd1 {[%emt 0:03:26]} Bh6 {[%emt 0:02:29]} 13. Bxh6 {[%emt 0:08:23]} Nxh6 {[%emt 0:00:12]} 14. c5 {[%emt 0:01:28]} dxc5 {[%emt 0:02:36]} 15. dxc5 {[%emt 0:00:00]} Nf7 {[%emt 0:00:46]} 16. Bc4 {[%emt 0:00:47]} Re8 {[%emt 0:00:42]} 17. Rd6 {[%emt 0:16:28]} Kg7 {[%emt 0:01:50]} 18. Re6 {[%emt 0:00:56]} Qf8 {[%emt 0:02:07]} 19. Rd1 {[%emt 0:04:43]} Rxe6 {[%emt 0:00:31]} 20. Bxe6 {[%emt 0:00:05]} Qe7 {[%emt 0:00:11]} 21. Bxf7 {[%emt 0:03:32]} Qxf7 {[%emt 0:02:14]} 22. Qd3 {[%emt 0:06:53]} Nf8 {[%emt 0:08:22]} 23. b5 {[%emt 0:00:00]} Be6 {[%emt 0:08:00]} 24. bxc6 {[%emt 0:00:00]} bxc6 {[%emt 0:00:13]} 25. Qd6 {[%emt 0:01:19]} Rc8 {[%emt 0:01:32]} 26. a3 {[%emt 0:02:10]} (26. Nh2 $11) 26... Qc7 {[%emt 0:01:46]} 27. Ne1 {[%emt 0:07:35]} Bf7 {[%emt 0:03:31]} 28. Nc2 {[%emt 0:03:45]} Bb3 {[%emt 0:02:09]} 29. Rc1 {[%emt 0:01:23]} Ne6 {[%emt 0:05:13]} 30. Nb4 {[%emt 0:03:59]} Nd4 {[%emt 0:03:52]} 31. Qxc7+ {[%emt 0:03:49]} Rxc7 {[%emt 0:00:12]} 32. f3 {[%emt 0:01:35]} Rb7 {[%emt 0:02:10]} 33. Kf2 {[%emt 0:00:42]} a5 {[%emt 0:00:49]} 34. Nd3 {[%emt 0:00:33]} Bc2 {[%emt 0:01:36]} 35. Ke3 {[%emt 0:02:06]} Rb3 {[%emt 0:00:49]} 36. Kd2 {[%emt 0:01:37]} Bxd3 {[%emt 0:00:35]} 37. Kxd3 {[%emt 0:00:02]} Rxa3 {[%emt 0:02:02]} 38. Kc4 {[%emt 0:01:09]} Rb3 {[%emt 0:00:15]} 39. Ra1 {[%emt 0:00:52]} Rb4+ {[%emt 0:01:05]} 40. Kd3 {[%emt 0:00:02]} Rb2 {[%emt 0:00:27]} 41. Ra2 {[%emt 0:34:05]} Rxa2 {[%emt 0:30:29]} 42. Nxa2 {[%emt 0:00:00]} Kh6 {[%emt 0:00:00]} 43. f4 {[%emt 0:00:00]} Ne6 {[%emt 0:00:00]} 44. fxe5 {[%emt 0:00:00]} fxe5 {[%emt 0:00:00]} 45. Kc4 {[%emt 0:00:00]} Nf4 {[%emt 0:00:00]} 46. Nc3 {[%emt 0:00:00]} Nxg2 {[%emt 0:00:00]} 47. Nd5 {[%emt 0:00:00]} cxd5+ {[%emt 0:00:00]} 48. Kxd5 {[%emt 0:00:00]} Ne3+ {[%emt 0:00:00]} 49. Kxe5 {[%emt 0:00:00]} a4 {[%emt 0:00:00]} 50. Kd4 {[%emt 0:00:00]} a3 {[%emt 0:00:00]} 51. Kc3 {[%emt 0:00:00]} Kg5 {[%emt 0:00:00]} 52. c6 {[%emt 0:00:00]} a2 {[%emt 0:00:00]} 53. Kb2 {[%emt 0:00:00]} Kf4 {[%emt 0:00:00] Decoy} 54. Kxa2 {[%emt 0:00:00]} Nc4 {[%emt 0:00:00]} 55. Kb3 {[%emt 0:00:00]} Nd6 {[%emt 0:00:00]} 56. c7 {[%emt 0:00:00]} Kxe4 {[%emt 0:00:00]} 57. Kc3 {[%emt 0:00:00]} g5 {[%emt 0:00:00]} 58. Kd2 {[%emt 0:00:00]} Kf3 {[%emt 0:00:00]} 59. Kd3 {[%emt 0:00:00]} h5 {[%emt 0:00:00]} 60. Kd4 {[%emt 0:00:00]} g4 {[%emt 0:00:00]} 61. hxg4 {[%emt 0:00:00]} hxg4 {[%emt 0:00:00]} 62. Kd5 {[%emt 0:00:00]} Nc8 {[%emt 0:00:00]} 63. Kc6 {[%emt 0:00:07]} g3 {[%emt 0:00:00]} 64. Kd7 {[%emt 0:00:17]} Na7 {[%emt 0:00:00]} 0-1

[Event "World Senior chT-65 2019"]
[Site "Rhodes"]
[Date "2019.04.23"]
[Round "8.27"]
[White "Van Herck, Marcel"]
[Black "Stokes, Michael"]
[Result "1/2-1/2"]
[ECO "C85"]
[WhiteElo "2066"]
[BlackElo "2092"]
[Annotator "NA RC"]
[PlyCount "74"]
[EventDate "2019.04.16"]
[EventType "team-tourn"]
[EventCountry "GRE"]
[SourceTitle "playchess.com"]
[Source "ChessBase"]
[SourceQuality "1"]
[WhiteTeam "Belgium"]
[BlackTeam "England"]
[WhiteTeamCountry "BEL"]
[BlackTeamCountry "ENG"]
[TimeControl "40/5400+30:1800+30"]

1. e4 {[%emt 0:03:56]} e5 {[%emt 0:00:00]} 2. Nf3 {[%emt 0:00:04]} Nc6 {[%emt 0:00:00]} 3. Bb5 {[%emt 0:00:02]} a6 {[%emt 0:00:00]} 4. Ba4 {[%emt 0:00:02]} Nf6 {[%emt 0:00:00]} 5. O-O {[%emt 0:00:03]} Be7 {[%emt 0:00:18]} 6. Bxc6 {[%emt 0:01:41]} bxc6 {[%emt 0:00:35]} 7. Nxe5 {[%emt 0:09:04] C85: Closed Ruy Lopez: Deferred Exchange Variation} (7. Re1 d6 8. d4 exd4 9. Nxd4 c5 10. Nc6 Qd7 11. Nxe7 Qxe7 12. Nc3 O-O 13. Bf4 Be6 14. e5 Ne8 15. Qd2 Rb8 16. b3 {½-½ (54) Farkas,T (2313)-Fule,S (2180) Budapest 2019}) 7... Nxe4 {[%emt 0:00:51]} 8. Re1 {[%emt 0:15:22]} Nf6 {[%emt 0:01:14]} 9. Qe2 {[%emt 0:01:06]} c5 {[%emt 0:07:52]} 10. Nc3 $146 {[%emt 0:05:21]} ({Predecessor:} 10. Nd3 d6 11. b3 Bb7 12. Bb2 Qd7 13. Na3 O-O-O 14. Qxe7 Qg4 {0-1 (25) Poormosavi,S (2086)-Jahedi,M (1951) Teheran 2016}) 10... Bb7 {[%emt 0:01:39]} 11. d3 {[%emt 0:02:23]} O-O {[%emt 0:02:08]} 12. Ng6 {[%emt 0:04:21]} fxg6 {[%emt 0:05:02]} 13. Qxe7 {[%emt 0:00:08]} Ng4 {[%emt 0:04:46]} 14. Qxd8 {[%emt 0:00:21]} Raxd8 {[%emt 0:00:07]} 15. f3 {[%emt 0:01:45]} Nf6 {[%emt 0:00:45]} 16. Bg5 {[%emt 0:04:48]} Rde8 {[%emt 0:02:30]} 17. Ne4 {[%emt 0:09:23]} Nxe4 {[%emt 0:03:24]} 18. fxe4 {[%emt 0:00:16]} c4 {[%emt 0:03:41]} 19. Rf1 {[%emt 0:04:28]} Rxf1+ {[%emt 0:03:33]} 20. Kxf1 {[%emt 0:00:42]} d5 {[%emt 0:04:54]} 21. exd5 {[%emt 0:07:09]} Bxd5 {[%emt 0:00:42]} 22. g3 $11 {[%emt 0:01:37]} a5 {[%emt 0:06:16]} 23. b3 {[%emt 0:05:21]} cxd3 {[%emt 0:04:41]} 24. cxd3 {[%emt 0:00:18]} Ra8 {[%emt 0:03:54]} 25. Bf4 {[%emt 0:02:19]} c6 {[%emt 0:02:05]} 26. Ke2 {[%emt 0:00:26]} a4 {[%emt 0:00:51]} 27. bxa4 {[%emt 0:00:05]} Rxa4 {[%emt 0:00:12]} 28. a3 {[%emt 0:00:10]} Kf7 {[%emt 0:08:26]} 29. Bd6 {[%emt 0:00:35]} Ke6 {[%emt 0:03:13]} 30. Bb4 {[%emt 0:02:23]} g5 {[%emt 0:01:53]} 31. Rf1 {[%emt 0:02:16]} Ra7 {[%emt 0:03:55]} 32. Ke3 {[%emt 0:00:39]} g4 {[%emt 0:04:47]} 33. Rf8 {[%emt 0:00:23]} Bf3 {[%emt 0:03:57]} 34. Re8+ {[%emt 0:00:58]} Kf7 {[%emt 0:01:45]} 35. Rf8+ {[%emt 0:00:37]} Ke6 {[%emt 0:00:34]} 36. Re8+ {[%emt 0:08:54]} Kf7 {[%emt 0:00:15]} 37. Rf8+ {[%emt 0:00:09]} Ke6 {[%emt 0:00:09] Ke4 [%clk 00:08:10] [%emt 00:00:42] Ke5+ [%clk 00:17:36]} 1/2-1/2